bitfinex-derivatives/quotes_SOLF0:USTF0_20260305
["timestamp","ask_amount","ask_price","bid_price","bid_amount"]
[1772727282361,10.192,88.283,88.22,9.69122003]
[1772727282362,10.192,88.283,88.232,5.52928095]
[1772727282663,1.34703132,88.296,88.238,10.197]
[1772727282664,10.191,88.29,88.238,10.197]
[1772727283057,1.34703132,88.296,88.232,5.52928095]
[1772727283253,0.07326953,88.273,88.232,5.52928095]
[1772727283952,0.07326953,88.273,88.201,5.52928095]
[1772727284357,10.195,88.256,88.21,10.2]
[1772727284953,10.195,88.256,88.166,1.97206245]
[1772727284954,10.197,88.233,88.185,10.203]
[1772727285152,1.40399864,88.259,88.182,5.52928095]
[1772727285564,8.64972248,88.28,88.182,5.52928095]
[1772727285565,10.2,88.213,88.182,5.52928095]
[1772727285756,0.07215236,88.229,88.182,5.52928095]
[1772727286160,10.199,88.221,88.182,5.52928095]
[1772727286360,8.6540338,88.239,88.182,5.52928095]
[1772727286559,9.69122003,88.24,88.182,5.52928095]
[1772727286759,10.33506055,88.261,88.16,9.69122003]
[1772727286760,1.40290641,88.249,88.161,5.52928095]
[1772727286960,1.40290641,88.248,88.161,5.52928095]
[1772727287160,10.199,88.219,88.164,5.52928095]
[1772727287464,0.07173446,88.22,88.164,5.52928095]
[1772727287665,10.198,88.227,88.182,10.203]
[1772727288163,1.40290641,88.248,88.182,10.203]
[1772727288758,1.40290641,88.248,88.172,5.52928095]
[1772727289263,10.196,88.24,88.189,15.35579925]
[1772727289761,10.198,88.224,88.177,10.204]
[1772727290263,10.198,88.224,88.206,0.07363198]
[1772727292364,10.199,88.217,88.206,0.07363198]
[1772727292557,0.07219796,88.224,88.17,5.15379925]
[1772727293060,1.40290641,88.248,88.17,5.15379925]
[1772727293268,10.199,88.222,88.171,10.204]
[1772727293567,10.199,88.222,88.14,9.69122003]
[1772727293568,1.40290641,88.248,88.172,5.15379925]
[1772727294361,9.69122003,88.25,88.146,5.15379925]
[1772727294362,1.3475412,88.229,88.146,5.15379925]
[1772727295062,1.34557263,88.209,88.147,5.15379925]
[1772727295965,9.69122003,88.22,88.147,5.15379925]
[1772727296159,10.199,88.216,88.163,5.15379925]
[1772727296362,9.69122003,88.22,88.163,5.15379925]
[1772727296665,1.34747142,88.228,88.163,5.15379925]
[1772727296965,10.2,88.209,88.163,5.15379925]
[1772727298268,0.07210215,88.195,88.163,5.15379925]
[1772727299165,0.07210215,88.195,88.166,5.15379925]
[1772727299361,10.199,88.217,88.166,5.15379925]
[1772727299866,10.198,88.225,88.169,5.15379925]
[1772727300365,10.2,88.213,88.169,5.15379925]
[1772727300560,8.66480347,88.239,88.169,5.15379925]
[1772727300766,1.38560517,88.246,88.169,5.15379925]
[1772727300966,10.197,88.24,88.184,10.203]
[1772727301469,10.197,88.24,88.192,10.202]
[1772727301665,8.66282331,88.259,88.184,5.15379925]
[1772727301666,1.39753081,88.258,88.184,5.15379925]
[1772727302066,9.69122003,88.26,88.162,5.15379925]
[1772727302067,1.39742113,88.239,88.162,5.15379925]
[1772727302673,10.198,88.226,88.173,5.15379925]
[1772727303169,10.197,88.234,88.182,10.203]
[1772727303373,1.4257447,88.26,88.183,5.15379925]
[1772727303668,9.69122003,88.28,88.191,5.15379925]
[1772727303669,1.42761949,88.278,88.191,5.15379925]
[1772727303876,10.192,88.276,88.217,5.15379925]
[1772727304774,1.16001724,88.296,88.217,5.15379925]
[1772727304964,1.16001724,88.296,88.231,5.15379925]
[1772727305169,1.16001724,88.315,88.231,5.15379925]
[1772727305375,1.16001724,88.315,88.21,9.69122003]
[1772727305376,1.16001724,88.315,88.241,5.15379925]
[1772727305575,1.16001724,88.315,88.247,5.15379925]
[1772727305775,1.16182247,88.309,88.247,5.15379925]
[1772727305972,10.19,88.293,88.247,5.15379925]
[1772727306178,9.835192,88.309,88.247,5.15379925]
[1772727306375,1.16182247,88.309,88.224,5.15379925]
[1772727306575,9.69122003,88.27,88.197,5.15379925]
[1772727306779,1.16348335,88.269,88.197,5.15379925]
[1772727308673,10.194,88.259,88.198,10.201]
[1772727308872,1.16348335,88.269,88.198,10.201]
[1772727309179,9.69122003,88.25,88.18,5.15379925]
[1772727309373,10.96257429,88.25,88.18,5.15379925]
[1772727309577,1.27135426,88.249,88.18,5.15379925]
[1772727309874,1.27135426,88.249,88.089,35.17537109]
[1772727309875,9.69122003,88.23,88.16,5.15379925]
[1772727310075,1.27306571,88.248,88.16,5.15379925]
[1772727310272,9.69122003,88.23,88.163,5.15379925]
[1772727310476,1.27306571,88.229,88.163,5.15379925]
[1772727310780,10.202,88.194,88.143,10.208]
[1772727310981,1.13780556,88.211,88.144,5.15379925]
[1772727311175,10.203,88.188,88.144,5.15379925]
[1772727311379,1.13780556,88.209,88.144,5.15379925]
[1772727312077,10.201,88.197,88.146,5.15379925]
[1772727312384,1.13939051,88.229,88.151,5.15379925]
[1772727313078,1.13939051,88.229,88.169,5.15379925]
[1772727313483,11.33739051,88.229,88.171,10.204]
[1772727313674,1.13939051,88.229,88.171,15.35779925]
[1772727314080,10.198,88.226,88.172,5.15379925]
[1772727314681,10.198,88.226,88.175,10.204]
[1772727314881,10.198,88.226,88.176,5.15379925]
[1772727315084,10.199,88.218,88.176,5.15379925]
[1772727315582,10.198,88.228,88.176,5.15379925]
[1772727315779,1.14613222,88.248,88.176,5.15379925]
[1772727316086,10.195,88.253,88.194,5.15379925]
[1772727316578,9.69122003,88.29,88.194,5.15379925]
[1772727316778,1.1922072,88.289,88.215,5.15379925]
[1772727317583,1.1922072,88.289,88.157,158.766]
[1772727317584,1.1922072,88.289,88.219,5.15379925]
[1772727318085,1.1922072,88.289,88.243,0.07173161]
[1772727318482,1.19522372,88.309,88.243,0.07173161]
[1772727318989,1.32063799,88.289,88.191,5.34389931]
[1772727319586,1.32063799,88.289,88.211,5.34389931]
[1772727319978,10.19,88.294,88.239,10.196]
[1772727320180,1.32212824,88.309,88.235,5.34389931]
[1772727320792,10.191,88.287,88.263,0.07152376]
[1772727320988,1.25785157,88.279,88.208,5.34389931]
[1772727321483,1.25785157,88.279,88.1,35.17537109]
[1772727321484,1.25785157,88.259,88.171,5.34389931]
[1772727321688,10.197,88.233,88.173,5.34389931]
[1772727321889,1.25785157,88.259,88.173,5.34389931]
[1772727322288,10.196,88.242,88.173,5.34389931]
[1772727323190,1.25785157,88.259,88.173,5.34389931]
[1772727323991,1.25785157,88.259,88.123,20.42]
[1772727323992,1.25785157,88.259,88.183,5.34389931]
[1772727324392,1.2680945,88.249,88.183,5.34389931]
[1772727324594,1.2680945,88.249,88.164,5.34389931]
[1772727325294,1.2680945,88.249,88.165,10.205]
[1772727325495,0.07165483,88.215,88.164,5.34389931]
[1772727326694,10.2,88.213,88.166,5.34389931]
[1772727327389,10.2,88.205,88.156,10.206]
[1772727327596,10.2,88.205,88.157,5.14747639]
[1772727328089,10.201,88.197,88.138,5.14747639]
[1772727328298,1.33133602,88.209,88.138,5.14747639]
[1772727328690,10.202,88.188,88.14,5.14747639]
[1772727330603,0.07161678,88.173,88.14,5.14747639]
[1772727332399,10.202,88.193,88.141,10.208]
[1772727332601,10.202,88.193,88.142,5.15991126]
[1772727333002,1.33133602,88.209,88.142,5.15991126]
[1772727333802,10.202,88.189,88.142,5.15991126]
[1772727334303,10.205,88.168,88.122,5.16587626]
[1772727335302,10.204,88.177,88.123,10.21]
[1772727335700,10.204,88.177,88.124,5.16113702]
[1772727336904,9.7043975,88.19,88.124,5.16113702]
[1772727337106,0.94372426,88.189,88.124,5.16113702]
[1772727337702,10.204,88.173,88.124,5.16113702]
[1772727338199,0.94372426,88.189,88.124,5.16113702]
[1772727338800,9.7043975,88.21,88.133,5.14747639]
[1772727339002,0.94640128,88.209,88.133,5.14747639]
[1772727340012,10.202,88.191,88.139,10.208]
[1772727340215,10.202,88.191,88.133,5.14747639]
[1772727340413,0.94640128,88.209,88.133,5.14747639]
[1772727340613,0.94640128,88.209,88.12,9.7043975]
[1772727340809,0.94640128,88.209,88.121,5.14747639]
[1772727342411,1.00395523,88.189,88.121,5.14747639]
[1772727343111,10.204,88.172,88.121,5.14747639]
[1772727343411,1.00395523,88.189,88.121,5.14747639]
[1772727344020,1.02442277,88.169,88.101,5.14747639]
[1772727344309,9.7043975,88.19,88.101,5.14747639]
[1772727344517,1.02442277,88.189,88.132,10.209]
[1772727345112,10.204,88.176,88.125,5.14747639]
[1772727346411,10.204,88.176,88.129,15.35647639]
[1772727349018,1.02442277,88.189,88.129,5.14747639]
[1772727350814,10.204,88.178,88.136,10.208]
[1772727351217,1.02442277,88.189,88.129,5.14747639]
[1772727351525,1.02442277,88.189,88.1,9.7043975]
[1772727351526,10.205,88.17,88.126,10.209]
[1772727352020,10.204,88.178,88.133,10.209]
[1772727352218,1.02442277,88.189,88.133,5.24347131]
[1772727352825,10.203,88.182,88.14,10.208]
[1772727353224,1.02442277,88.189,88.116,5.24347131]
[1772727353425,1.1433101,88.169,88.099,5.24347131]
[1772727354125,1.14441456,88.149,88.061,5.24347131]
[1772727354428,1.14441456,88.129,88.043,5.24347131]
[1772727354630,1.14567901,88.089,88.024,5.24347131]
[1772727355730,10.212,88.101,88.045,10.219]
[1772727356629,1.15688806,88.109,88.053,10.218]
[1772727356825,124.0,88.16,87.997,159.055]
[1772727356826,0.80105252,88.139,88.043,5.24347131]
[1772727357025,0.80105252,88.139,88.061,5.24347131]
[1772727360125,0.80319452,88.158,88.081,5.24347131]
[1772727360928,0.80319452,88.158,88.063,5.24347131]
[1772727361126,0.83834452,88.135,88.074,10.216]
[1772727361327,0.83834452,88.159,88.075,5.24347131]
[1772727361530,0.83834452,88.159,88.081,5.24347131]
[1772727361935,10.206,88.158,88.104,10.212]
[1772727362130,0.8392824,88.179,88.105,5.24347131]
[1772727362630,0.8392824,88.179,88.113,5.24347131]
[1772727363131,10.51812485,88.15,88.081,5.24347131]
[1772727363335,0.81372735,88.149,88.081,5.24347131]
[1772727363734,9.7043975,88.17,88.091,5.24347131]
[1772727363735,0.8146478,88.169,88.091,5.24347131]
[1772727364125,10.205,88.166,88.109,10.212]
[1772727364632,10.206,88.158,88.099,10.213]
[1772727365328,9.7043975,88.19,88.101,5.24347131]
[1772727365535,0.79896756,88.189,88.121,5.24347131]
[1772727365733,0.79995574,88.208,88.121,5.24347131]
[1772727366529,10.201,88.198,88.145,10.207]
[1772727366927,10.201,88.198,88.14,5.24347131]
[1772727367230,10.202,88.189,88.14,5.24347131]
[1772727367635,0.79995574,88.208,88.117,5.26791314]
[1772727367839,0.7118714,88.189,88.117,5.26791314]
[1772727368133,0.7118714,88.209,88.121,5.26797254]
[1772727368726,0.7118714,88.209,88.141,5.24347131]
[1772727369935,10.201,88.199,88.141,5.24347131]
[1772727370132,0.7118714,88.209,88.141,5.24347131]
[1772727370936,0.7118714,88.209,88.121,5.24347131]
[1772727371127,0.81952937,88.189,88.121,5.24347131]
[1772727371331,10.205,88.167,88.121,5.24347131]
[1772727371527,9.7043975,88.19,88.121,5.24347131]
[1772727371528,0.81952937,88.188,88.121,5.24347131]
[1772727371730,0.81952937,88.188,88.102,5.24347131]
[1772727372031,0.81952937,88.188,88.111,10.211]
[1772727372429,9.7043975,88.19,88.103,10.212]
[1772727372430,0.82036627,88.169,88.103,10.212]
[1772727373427,10.206,88.154,88.103,10.212]
[1772727373629,0.82036627,88.169,88.044,5.248975]
[1772727373828,0.82036627,88.169,88.091,5.24903519]
[1772727375930,0.79299359,88.188,88.091,5.24903519]
[1772727376331,0.79299359,88.188,88.112,5.24347131]
[1772727376533,0.79299359,88.186,88.112,5.24347131]
[1772727376732,1.06910314,88.167,88.092,5.24347131]
[1772727377935,10.205,88.163,88.108,10.212]
[1772727378136,10.205,88.163,88.109,5.24347131]
[1772727378637,10.205,88.163,88.09,9.7043975]
[1772727378638,10.203,88.182,88.111,5.24347131]
[1772727378840,9.7043975,88.17,88.044,177.0]
[1772727379039,10.207,88.145,88.094,10.213]
[1772727379436,1.07407183,88.168,88.089,5.19073622]
[1772727379639,1.07483595,88.149,88.061,5.19073622]
[1772727379832,1.07483595,88.149,87.991,28.12210596]
[1772727379833,1.07368679,88.129,88.044,5.19073622]
[1772727380844,1.0159016,88.109,88.044,5.19073622]
[1772727381342,1.0159016,88.109,88.046,10.219]
[1772727381642,1.01668927,88.099,88.029,5.19073622]
[1772727382741,0.91944755,88.099,88.029,5.19073622]
[1772727383134,0.91944755,88.059,87.979,5.19073622]
[1772727383442,9.7043975,88.04,87.979,5.19073622]
[1772727383742,10.22,88.037,87.979,5.19073622]
[1772727383943,10.22,88.037,87.937,1.97710984]
[1772727383944,0.92016901,88.079,87.981,5.19073622]
[1772727384146,9.7043975,88.06,87.981,5.19073622]
[1772727384535,10.217,88.059,87.997,10.224]
[1772727385048,10.217,88.059,87.997,15.41473622]
[1772727385241,10.217,88.059,87.999,10.224]
[1772727385547,10.217,88.059,88.019,0.07156757]
[1772727386742,10.214,88.09,88.022,5.19073622]
[1772727387141,0.92739749,88.097,88.022,5.19073622]
[1772727387338,158.819,88.129,88.001,5.58489654]
[1772727387339,0.93641837,88.089,88.001,5.58489654]
[1772727387742,10.215,88.076,88.012,5.58489654]
[1772727388243,0.93641837,88.089,88.012,5.58489654]
[1772727388436,10.214,88.086,88.024,5.58489654]
[1772727388843,0.93641837,88.089,88.029,5.58489654]
[1772727389040,10.213,88.097,88.029,5.58489654]
[1772727389744,10.214,88.087,88.031,5.58489654]
[1772727391249,10.215,88.076,88.031,5.58489654]
[1772727391452,10.215,88.076,88.01,9.7043975]
[1772727391453,0.97015911,88.089,88.01,5.58489654]
[1772727391948,0.97015911,88.089,88.011,5.58489654]
[1772727392349,10.216,88.073,88.016,5.58489654]
[1772727392546,0.97015911,88.089,88.016,5.58489654]
[1772727392947,10.216,88.074,88.016,5.58489654]
[1772727393948,10.216,88.074,87.99,9.7043975]
[1772727393949,0.98549406,88.069,87.998,5.58489654]
[1772727394347,10.216,88.069,88.016,10.222]
[1772727394644,0.98607431,88.089,88.017,5.58489654]
[1772727395044,10.216,88.071,88.017,5.58489654]
[1772727395448,0.98607431,88.089,88.017,5.58489654]
[1772727395648,10.217,88.063,88.003,10.224]
[1772727396752,0.93809321,88.093,88.02,5.58489654]
[1772727397145,158.8,88.139,87.962,159.118]
[1772727397146,0.93809321,88.119,88.031,5.58489654]
[1772727397757,0.93857126,88.098,88.031,5.58489654]
[1772727398547,0.93909706,88.127,88.031,5.58489654]
[1772727398946,10.214,88.092,88.039,10.22]
[1772727399153,0.95685798,88.107,88.031,5.58489654]
[1772727399546,0.95685798,88.107,88.033,5.58489654]
[1772727400355,10.214,88.092,88.037,10.22]
[1772727400559,10.214,88.092,88.038,5.58489654]
[1772727402758,0.77827423,88.099,88.038,5.58489654]
[1772727404454,10.214,88.085,88.038,5.58489654]
[1772727405351,0.77827423,88.099,88.04,5.58489654]
[1772727405956,10.214,88.087,88.04,5.58489654]
[1772727407855,10.213,88.096,88.04,5.58489654]
[1772727408058,1.29125829,88.117,88.041,5.58489654]
[1772727408459,1.29125829,88.139,88.041,5.58489654]
[1772727409160,1.29125829,88.139,88.071,5.54897797]
[1772727409565,1.28839159,88.169,88.081,5.54897797]
[1772727409760,10.207,88.147,88.096,5.54897797]
[1772727409961,1.28839159,88.169,88.096,5.54897797]
[1772727410463,1.28839159,88.169,88.098,5.54897797]
[1772727410464,10.207,88.149,88.098,5.54897797]
[1772727411663,10.207,88.149,88.1,5.54897797]
[1772727411859,10.206,88.157,88.1,5.54897797]
[1772727412061,1.28839159,88.169,88.1,5.54897797]
[1772727412263,10.207,88.149,88.1,5.54897797]
[1772727412766,1.28839159,88.169,88.08,5.54897797]
[1772727412956,1.2420248,88.149,88.051,5.54897797]
[1772727413267,10.204,88.174,88.122,10.21]
[1772727413456,10.204,88.174,88.123,5.54897797]
[1772727414663,1.24290182,88.181,88.101,5.54897797]
[1772727415358,9.72802527,88.2,88.103,5.54897797]
[1772727415559,1.39315497,88.199,88.103,5.54897797]
[1772727415958,10.204,88.179,88.122,10.21]
[1772727416163,10.204,88.179,88.1,9.72802527]
[1772727416164,1.39315497,88.199,88.123,5.54897797]
[1772727416867,1.39315497,88.199,88.125,5.54897797]
[1772727417257,1.39315497,88.199,88.152,0.07148069]
[1772727417870,10.203,88.181,88.152,0.07148069]
[1772727418169,1.39315497,88.199,88.152,0.07148069]
[1772727418369,10.202,88.195,88.152,0.07148069]
[1772727418967,10.203,88.187,88.152,0.07148069]
[1772727420469,10.201,88.196,88.152,0.07148069]
[1772727421570,1.39728684,88.215,88.152,5.62045866]
[1772727421870,9.72802527,88.23,88.152,5.62045866]
[1772727422069,1.39763918,88.229,88.152,5.54897797]
[1772727422770,10.201,88.2,88.152,5.54897797]
[1772727423073,1.39763918,88.229,88.152,5.54897797]
[1772727423672,10.202,88.196,88.152,5.54897797]
[1772727423866,1.41601308,88.209,88.152,5.54897797]
[1772727424571,10.202,88.19,88.152,5.54897797]
[1772727424773,10.202,88.19,88.126,5.54897797]
[1772727425671,10.202,88.19,88.149,0.07152578]
[1772727426170,10.203,88.182,88.149,0.07152578]
[1772727426569,1.41601308,88.209,88.149,0.07152578]
[1772727426769,1.16515373,88.207,88.13,5.54897797]
[1772727427070,328.24732746,88.262,88.151,5.54897797]
[1772727427071,9.72802527,88.23,88.151,5.54897797]
[1772727427271,9.72802527,88.23,88.087,158.893]
[1772727427272,10.205,88.163,88.107,10.212]
[1772727427468,5.08280801,88.209,88.12,9.72802527]
[1772727427668,5.08280801,88.209,88.087,158.893]
[1772727427669,5.08280801,88.227,88.14,9.72802527]
[1772727428268,5.08280801,88.219,88.12,9.72802527]
[1772727428669,5.08280801,88.219,88.14,9.72802527]
[1772727428876,5.08280801,88.236,88.14,9.72802527]
[1772727429074,5.08280801,88.236,88.164,10.205]
[1772727429375,5.08280801,88.236,88.165,5.54897797]
[1772727429576,10.199,88.221,88.17,5.54897797]
[1772727429776,9.72802527,88.24,88.17,5.54897797]
[1772727431174,5.08280801,88.254,88.181,5.54897797]
[1772727432066,10.197,88.239,88.181,5.54897797]
[1772727432271,5.08280801,88.249,88.151,5.54897797]
[1772727432475,9.72802527,88.23,88.151,5.54897797]
[1772727432775,5.08280801,88.249,88.171,5.54897797]
[1772727433276,5.08280801,88.249,88.182,5.54897797]
[1772727433771,10.197,88.239,88.184,10.203]
[1772727433975,5.08280801,88.269,88.185,5.54897797]
[1772727434573,5.08280801,88.269,88.201,5.54897797]
[1772727434777,158.437,88.341,88.201,5.54897797]
[1772727434778,5.08280801,88.289,88.201,5.54897797]
[1772727435175,10.194,88.26,88.205,5.54897797]
[1772727435379,5.08280801,88.268,88.205,5.54897797]
[1772727435876,10.195,88.252,88.205,5.54897797]
[1772727436172,5.08280801,88.268,88.205,5.54897797]
[1772727437077,5.08280801,88.286,88.216,5.54897797]
[1772727437679,10.193,88.269,88.216,5.54897797]
[1772727438382,5.08280801,88.269,88.199,5.54897797]
[1772727439480,5.18411085,88.289,88.211,5.52079643]
[1772727440084,5.18411085,88.309,88.226,5.52079643]
[1772727440485,5.18411085,88.309,88.231,5.52079643]
[1772727440684,5.18411085,88.329,88.244,5.52079643]
[1772727441092,5.18411085,88.309,88.244,5.52079643]
[1772727441490,10.191,88.289,88.244,5.52079643]
[1772727441687,5.18411085,88.309,88.244,5.52079643]
[1772727441891,20.369,88.346,88.244,5.52079643]
[1772727441892,5.18411085,88.329,88.244,5.52079643]
[1772727442092,9.72802527,88.31,88.244,5.52079643]
[1772727442294,10.191,88.29,88.244,5.52079643]
[1772727443386,5.18411085,88.309,88.244,5.52079643]
[1772727443989,10.191,88.291,88.244,5.52079643]
[1772727444591,10.192,88.282,88.244,5.52079643]
[1772727444790,5.18411085,88.309,88.244,5.52079643]
[1772727445189,10.191,88.291,88.244,5.52079643]
[1772727445396,5.18411085,88.309,88.244,5.52079643]
[1772727445884,5.18411085,88.332,88.23,9.72802527]
[1772727446087,5.18411085,88.332,88.254,5.52079643]
[1772727447298,5.23295331,88.329,88.254,5.52079643]
[1772727447592,5.23295331,88.289,88.228,5.68119152]
[1772727447897,9.72802527,88.27,88.201,5.68119152]
[1772727448092,9.72802527,88.27,88.203,5.68119152]
[1772727448292,20.381,88.292,88.141,158.795]
[1772727448293,5.23295331,88.328,88.211,5.68119152]
[1772727448498,5.23295331,88.299,88.211,5.68119152]
[1772727448797,5.23295331,88.299,88.229,5.68119152]
[1772727449697,5.23295331,88.289,88.229,5.68119152]
[1772727450690,5.23295331,88.289,88.201,5.68119152]
[1772727451095,5.23295331,88.307,88.201,5.68119152]
[1772727451298,10.19,88.299,88.245,5.68119152]
[1772727451598,5.23295331,88.299,88.226,5.68119152]
[1772727452000,5.23295331,88.299,88.22,9.72802527]
[1772727452001,5.23295331,88.299,88.236,5.68119152]
[1772727452495,10.191,88.286,88.236,5.68119152]
[1772727453495,10.19,88.295,88.236,5.68119152]
[1772727453892,10.19,88.295,88.239,5.68119152]
[1772727454095,10.189,88.304,88.239,5.68119152]
[1772727454295,5.23295331,88.318,88.26,10.194]
[1772727454496,9.72802527,88.33,88.26,5.68119152]
[1772727455301,10.189,88.306,88.261,5.68119152]
[1772727455698,5.23295331,88.329,88.261,5.68119152]
[1772727456504,10.189,88.307,88.261,5.68119152]
[1772727456906,5.23295331,88.329,88.261,5.68119152]
[1772727457201,5.23295331,88.329,88.266,5.68119152]
[1772727457598,5.23295331,88.349,88.266,5.68119152]
[1772727457795,10.185,88.335,88.29,10.191]
[1772727457999,5.23295331,88.349,88.29,10.191]
[1772727458205,10.185,88.336,88.284,5.68119152]
[1772727458505,5.23295331,88.349,88.284,5.68119152]
[1772727458705,10.184,88.348,88.292,10.19]
[1772727458906,5.23295331,88.349,88.284,5.68119152]
[1772727459107,5.23295331,88.349,88.261,5.68119152]
[1772727459502,5.23295331,88.319,88.242,5.68119152]
[1772727459707,9.67169932,88.3,88.242,5.68119152]
[1772727459906,5.23295331,88.299,88.223,5.68119152]
[1772727460404,5.23295331,88.281,88.223,5.68119152]
[1772727460602,5.23295331,88.279,88.191,5.68119152]
[1772727461402,10.196,88.247,88.202,10.201]
[1772727461597,10.196,88.247,88.191,5.68119152]
[1772727461802,14.90465263,88.28,88.191,5.68119152]
[1772727461998,5.23295331,88.299,88.219,5.68119152]
[1772727462510,10.193,88.274,88.219,5.68119152]
[1772727462906,5.23295331,88.299,88.219,5.68119152]
[1772727463206,10.195,88.255,88.219,5.68119152]
[1772727463410,5.23295331,88.279,88.198,5.68119152]
[1772727464003,5.23295331,88.279,88.2,5.68119152]
[1772727465511,10.193,88.266,88.214,5.68119152]
[1772727465713,9.67169932,88.3,88.214,5.68119152]
[1772727466009,9.67169932,88.3,88.162,158.757]
[1772727466010,5.23295331,88.278,88.181,5.68119152]
[1772727466407,10.194,88.258,88.18,9.67169932]
[1772727466603,10.194,88.258,88.199,5.68119152]
[1772727467109,10.195,88.249,88.199,5.68119152]
[1772727467307,5.23295331,88.278,88.199,5.68119152]
[1772727467703,10.194,88.257,88.215,0.07140349]
[1772727467906,5.23295331,88.278,88.215,0.07140349]
[1772727468309,5.23295331,88.278,88.199,5.68119152]
[1772727468717,5.23295331,88.259,88.171,5.68119152]
[1772727469014,5.23295331,88.259,88.187,5.68119152]
[1772727470014,5.23295331,88.259,88.189,5.40746517]
[1772727470212,5.65836945,88.219,88.14,5.40746517]
[1772727470419,5.65836945,88.199,88.14,5.40746517]
[1772727471319,5.65836945,88.199,88.11,9.67169932]
[1772727471618,10.203,88.186,88.123,10.21]
[1772727471818,10.203,88.186,88.123,15.61746517]
[1772727472020,10.203,88.186,88.126,5.40746517]
[1772727472521,5.65836945,88.199,88.146,0.07177809]
[1772727472715,5.65836945,88.218,88.146,5.47924326]
[1772727472919,10.201,88.198,88.126,5.40746517]
[1772727473320,15.33006877,88.21,88.089,20.428]
[1772727473321,5.65836945,88.229,88.136,5.40746517]
[1772727473525,10.2,88.209,88.136,5.40746517]
[1772727473819,5.65836945,88.208,88.11,5.40746517]
[1772727474015,10.2,88.21,88.121,5.40746517]
[1772727474221,5.65836945,88.227,88.121,5.40746517]
[1772727475223,10.201,88.2,88.14,5.40746517]
[1772727475415,5.65836945,88.227,88.141,5.40746517]
[1772727475615,5.65836945,88.246,88.161,5.40746517]
[1772727476019,10.197,88.233,88.177,5.40746517]
[1772727476421,5.65836945,88.246,88.177,5.40746517]
[1772727476823,10.198,88.224,88.177,5.40746517]
[1772727478324,10.199,88.215,88.16,9.67169932]
[1772727478825,10.199,88.215,88.161,5.40746517]
[1772727479627,10.201,88.204,88.161,5.40746517]
[1772727479822,5.65836945,88.228,88.161,5.40746517]
[1772727480624,5.65836945,88.228,88.14,9.67169932]
[1772727480625,5.65836945,88.228,88.141,5.40746517]
[1772727480831,5.65836945,88.228,88.142,10.208]
[1772727480832,10.201,88.201,88.142,10.208]
[1772727481030,5.65836945,88.209,88.141,5.40746517]
[1772727481424,5.65836945,88.189,88.098,5.40746517]
[1772727481730,9.67169932,88.19,88.098,5.40746517]
[1772727481731,5.65836945,88.169,88.098,5.40746517]
[1772727481923,5.65836945,88.169,88.032,1.97211274]
[1772727481924,5.65836945,88.169,88.078,5.40746517]
[1772727482123,5.65836945,88.169,88.06,9.67169932]
[1772727482124,5.65836945,88.169,88.081,5.40746517]
[1772727482524,9.67169932,88.19,88.081,5.40746517]
[1772727482525,10.209,88.129,88.081,5.40746517]
[1772727483225,5.65836945,88.151,88.071,5.40746517]
[1772727483833,5.65836945,88.171,88.071,5.40746517]
[1772727484131,5.65836945,88.169,88.071,5.40746517]
[1772727484425,10.207,88.15,88.092,5.40746517]
[1772727484932,10.206,88.16,88.094,5.40746517]
[1772727485332,10.204,88.172,88.117,5.40746517]
[1772727485527,5.65836945,88.19,88.117,5.40746517]
[1772727486430,9.67169932,88.16,88.081,5.40746517]
[1772727486629,158.682,88.205,88.081,5.40746517]
[1772727486630,5.65836945,88.159,88.081,5.40746517]
[1772727486932,15.33006877,88.18,88.101,5.40746517]
[1772727487526,5.65836945,88.179,88.101,5.40746517]
[1772727488929,10.207,88.153,88.101,5.40746517]
[1772727489224,5.65836945,88.179,88.101,5.40746517]
[1772727489421,10.207,88.146,88.101,5.40746517]
[1772727489621,5.65836945,88.179,88.101,5.40746517]
[1772727490328,10.205,88.165,88.103,5.40746517]
[1772727490527,5.65836945,88.149,88.06,9.67169932]
[1772727490728,10.209,88.132,88.07,10.216]
[1772727491127,5.65836945,88.149,88.07,9.67169932]
[1772727491432,10.209,88.135,88.07,9.67169932]
[1772727491932,10.21,88.124,88.07,9.67169932]
[1772727493234,10.21,88.124,88.071,5.40746517]
[1772727493935,10.209,88.134,88.073,5.40746517]
[1772727494530,10.209,88.134,88.076,5.40746517]
[1772727495335,10.209,88.134,88.079,10.215]
[1772727496230,10.209,88.134,88.08,5.40746517]